bitfinex-derivatives/quotes_BTCF0:USTF0_20250130
["timestamp","ask_amount","ask_price","bid_price","bid_amount"]
[1738266705658,0.00542199,105540.0,105530.0,1.20692208]
[1738266706560,0.00542199,105540.0,105530.0,1.18152208]
[1738266706865,0.00542199,105540.0,105530.0,1.04862208]
[1738266707051,0.05722199,105540.0,105530.0,1.04862208]
[1738266707363,0.05722199,105540.0,105530.0,1.36301285]
[1738266707561,0.05722199,105540.0,105530.0,1.38841285]
[1738266709452,0.05722199,105540.0,105530.0,1.44521285]
[1738266711060,0.05722199,105540.0,105530.0,1.16133334]
[1738266711267,0.00542199,105540.0,105530.0,1.22923249]
[1738266711660,0.00542199,105540.0,105530.0,1.28563249]
[1738266714762,0.00542199,105540.0,105530.0,1.56786897]
[1738266716669,0.00351386,105540.0,105530.0,1.56786897]
[1738266718373,0.00351386,105540.0,105530.0,1.28563249]
[1738266726382,0.00351386,105540.0,105530.0,1.2260375]
[1738266726580,0.00351386,105540.0,105530.0,1.15813835]
[1738266727877,0.00351386,105540.0,105530.0,1.2260375]
[1738266730181,0.00351386,105540.0,105530.0,1.15813835]
[1738266736886,0.00351386,105540.0,105530.0,1.13273835]
[1738266737088,0.00351386,105540.0,105530.0,1.15813835]
[1738266737987,0.00351386,105540.0,105530.0,2.65813835]
[1738266738184,0.00351386,105540.0,105530.0,2.7260375]
[1738266740297,0.00351386,105540.0,105530.0,3.06691014]
[1738266741892,0.00351386,105540.0,105530.0,3.10168699]
[1738266742093,0.00351386,105540.0,105530.0,3.06691014]
[1738266744191,0.00351386,105540.0,105530.0,2.78671436]
[1738266745399,0.0545,105560.0,105550.0,0.189474]
[1738266745591,0.0545,105560.0,105550.0,0.9114723]
[1738266745787,0.0545,105560.0,105550.0,2.4114723]
[1738266746290,0.0545,105560.0,105550.0,2.4696723]
[1738266746997,0.11489536,105570.0,105560.0,0.189456]
[1738266747184,0.11489536,105570.0,105560.0,0.5452543]
[1738266747590,0.11489536,105570.0,105560.0,0.61315345]
[1738266747786,0.11489536,105570.0,105560.0,0.5452543]
[1738266747998,0.11489536,105570.0,105560.0,0.6026543]
[1738266748291,0.11489536,105570.0,105560.0,1.03235345]
[1738266748493,0.14189899,105580.0,105560.0,0.84289745]
[1738266748801,0.14189899,105580.0,105570.0,0.8233363]
[1738266749096,0.14189899,105580.0,105570.0,1.0333363]
[1738266749693,0.14389899,105580.0,105570.0,0.6725363]
[1738266749893,0.14389899,105580.0,105570.0,1.0333363]
[1738266750987,0.16977518,105590.0,105570.0,0.91179745]
[1738266751194,0.07679938,105590.0,105580.0,0.81201745]
[1738266751397,0.07679938,105590.0,105580.0,2.52201745]
[1738266752901,0.07879938,105590.0,105580.0,2.52201745]
[1738266753206,0.05942302,105600.0,105590.0,0.189402]
[1738266753503,0.05942302,105600.0,105590.0,0.9582003]
[1738266754602,0.05942302,105600.0,105590.0,0.9592003]
[1738266755095,0.06142302,105600.0,105590.0,0.9592003]
[1738266755402,0.06142302,105600.0,105590.0,0.9878003]
[1738266755604,0.06142302,105600.0,105590.0,1.0131603]
[1738266756492,0.06042302,105600.0,105590.0,1.0131603]
[1738266757099,0.06042302,105600.0,105590.0,1.0121603]
[1738266757494,0.06042302,105600.0,105590.0,1.02198774]
[1738266768507,0.06042302,105600.0,105590.0,0.99662774]
[1738266768710,0.06042302,105600.0,105590.0,1.02198774]
[1738266771011,0.06042302,105600.0,105590.0,0.99662774]
[1738266771517,0.06042302,105600.0,105590.0,1.02198774]
[1738266773108,0.06042302,105600.0,105590.0,1.2476456]
[1738266774210,0.74640532,105600.0,105580.0,0.98516785]
[1738266774403,0.61060702,105600.0,105590.0,0.06789915]
[1738266774610,0.47582302,105600.0,105590.0,0.09325915]
[1738266775009,0.11502302,105600.0,105590.0,0.09325915]
[1738266775514,0.11402302,105600.0,105590.0,0.09325915]
[1738266776013,0.11402302,105600.0,105590.0,0.28266115]
[1738266776315,0.11502302,105600.0,105590.0,0.28266115]
[1738266782209,0.37231317,105600.0,105590.0,0.02536]
[1738266782412,0.37231317,105600.0,105590.0,0.09325915]
[1738266782712,0.30441402,105600.0,105590.0,0.28266115]
[1738266783417,0.11502302,105600.0,105590.0,0.28266115]
[1738266785414,0.11502302,105600.0,105590.0,0.33266115]
[1738266787707,0.11502302,105600.0,105590.0,0.69346115]
[1738266787907,0.11502302,105600.0,105590.0,0.80826115]
[1738266788110,0.06042302,105600.0,105590.0,0.8761603]
[1738266789312,0.1976973,105620.0,105600.0,0.189369]
[1738266789619,0.1976973,105620.0,105610.0,0.3505243]
[1738266789816,0.1976973,105620.0,105610.0,0.3705243]
[1738266790013,0.1976973,105620.0,105610.0,0.30262515]
[1738266790213,0.1976973,105620.0,105610.0,0.66342515]
[1738266790415,0.1976973,105620.0,105610.0,0.7313243]
[1738266790611,0.1996973,105620.0,105610.0,0.7853243]
[1738266790814,0.1996973,105620.0,105610.0,0.71742515]
[1738266791625,0.1996973,105620.0,105610.0,0.71842515]
[1738266791921,0.2006973,105620.0,105610.0,0.71842515]
[1738266792424,0.2006973,105620.0,105610.0,0.71742515]
[1738266792611,0.2006973,105620.0,105610.0,0.35662515]
[1738266792818,0.059,105620.0,105610.0,0.94677778]
[1738266793317,0.059,105620.0,105610.0,0.956572]
[1738266793618,0.057,105620.0,105610.0,0.956572]
[1738266795810,0.057,105620.0,105610.0,0.595772]
[1738266796923,0.057,105620.0,105610.0,0.956572]
[1738266797119,0.057,105620.0,105610.0,0.31241937]
[1738266797521,0.4178,105620.0,105610.0,0.28705937]
[1738266797722,0.4178,105620.0,105610.0,0.31241937]
[1738266799118,0.4178,105620.0,105610.0,0.29241937]
[1738266800028,0.4178,105620.0,105610.0,0.49241937]
[1738266802331,0.057,105620.0,105610.0,0.49241937]
[1738266803031,0.4178,105620.0,105610.0,0.49241937]
[1738266805434,0.057,105620.0,105610.0,0.49241937]
[1738266806831,0.4178,105620.0,105610.0,0.49241937]
[1738266808127,0.4178,105620.0,105610.0,0.29241937]
[1738266811538,0.057,105620.0,105610.0,0.33241937]
[1738266811836,0.001,105620.0,105610.0,0.44531937]
[1738266812423,0.001,105620.0,105610.0,0.29241937]
[1738266812633,0.0595,105620.0,105610.0,0.29241937]
[1738266812937,0.001,105620.0,105610.0,0.34241937]
[1738266813138,0.001,105620.0,105610.0,0.52531937]
[1738266813336,0.3618,105620.0,105610.0,0.52531937]
[1738266814736,0.3618,105620.0,105610.0,0.49995937]
[1738266814928,0.3618,105620.0,105610.0,0.52531937]
[1738266815935,0.001,105620.0,105610.0,0.52531937]
[1738266818040,0.3618,105620.0,105610.0,0.52531937]
[1738266818442,0.001,105620.0,105610.0,0.52531937]
[1738266820644,0.08595789,105620.0,105610.0,0.808672]
[1738266820837,0.08595789,105620.0,105610.0,0.783312]
[1738266821043,0.44675789,105620.0,105610.0,0.688672]
[1738266821245,0.44675789,105620.0,105610.0,0.898672]
[1738266821456,0.70400504,105620.0,105610.0,0.29314685]
[1738266821651,0.75760504,105620.0,105610.0,0.28335263]
[1738266821844,0.75760504,105620.0,105610.0,0.30871263]
[1738266822045,0.08595789,105620.0,105610.0,1.07931693]
[1738266822250,0.08595789,105620.0,105610.0,1.27927693]
[1738266822456,0.08595789,105620.0,105610.0,1.27913101]
[1738266824251,0.19927628,105620.0,105610.0,0.9959243]
[1738266828863,0.001,105620.0,105610.0,1.26728161]
[1738266831960,0.001,105620.0,105610.0,1.19938246]
[1738266832468,0.001,105620.0,105610.0,1.53947514]
[1738266832665,0.001,105620.0,105610.0,1.60737429]
[1738266833058,0.001,105620.0,105610.0,1.53947514]
[1738266833763,0.001,105620.0,105610.0,1.51411514]
[1738266833961,0.001,105620.0,105610.0,1.53947514]
[1738266836263,0.001,105620.0,105610.0,1.51411514]
[1738266836458,0.001,105620.0,105610.0,1.53947514]
[1738266839969,0.001,105620.0,105610.0,1.26811783]
[1738266842171,0.001,105620.0,105610.0,1.69681698]
[1738266842475,0.04690716,105640.0,105630.0,0.18933]
[1738266842676,0.04690716,105640.0,105630.0,0.8859283]
[1738266842968,0.04690716,105640.0,105630.0,1.0553283]
[1738266843159,0.04690716,105640.0,105630.0,1.0806883]
[1738266844378,0.04790716,105640.0,105630.0,1.0806883]
[1738266844675,0.04790716,105640.0,105630.0,1.1512965]
[1738266847575,0.001,105640.0,105630.0,1.75709368]
[1738266847975,0.001,105640.0,105630.0,1.76871828]
[1738266848779,0.001,105640.0,105630.0,2.12951828]
[1738266851481,0.001,105640.0,105630.0,1.86381378]
[1738266854869,0.001,105640.0,105630.0,2.12951828]
[1738266858688,0.001,105640.0,105630.0,1.86381378]
[1738266862986,0.0549,105660.0,105630.0,1.67448378]
[1738266863181,0.0549,105660.0,105650.0,0.65329725]
[1738266863384,0.0549,105660.0,105650.0,0.87869725]
[1738266864182,0.001,105660.0,105650.0,0.92602025]
[1738266864386,0.001,105660.0,105650.0,1.09422025]
[1738266864887,0.001,105660.0,105650.0,1.12641978]
[1738266865891,0.52896178,105680.0,105660.0,0.189269]
[1738266866085,0.52896178,105680.0,105670.0,0.09310139]
[1738266867695,0.52896178,105680.0,105670.0,0.28235939]
[1738266867994,0.52896178,105680.0,105670.0,0.28335939]
[1738266869093,0.53196178,105680.0,105670.0,0.28335939]
[1738266869296,0.89276178,105680.0,105670.0,0.28335939]
[1738266869497,0.53196178,105680.0,105670.0,0.28335939]
[1738266869790,0.53196178,105680.0,105670.0,0.215658]
[1738266869995,0.96046317,105680.0,105670.0,0.215578]
[1738266870398,0.96046317,105680.0,105670.0,0.22661]
[1738266870593,0.59966317,105680.0,105670.0,0.22661]
[1738266870996,0.96046317,105680.0,105670.0,0.22661]
[1738266871290,0.52981839,105680.0,105670.0,0.26899139]
[1738266871597,0.96686117,105680.0,105670.0,0.190258]
[1738266871783,0.96686117,105680.0,105670.0,0.215578]
[1738266873097,0.96686117,105680.0,105670.0,0.190258]
[1738266873397,0.189258,105670.0,105660.0,0.18941158]
[1738266873597,0.68546078,105670.0,105660.0,0.18941158]
[1738266873801,0.61775939,105670.0,105660.0,0.18941158]
[1738266874696,0.61775939,105670.0,105660.0,0.25711297]
[1738266875090,0.61775939,105670.0,105660.0,0.19041158]
[1738266875596,0.68546078,105670.0,105660.0,0.00114258]
[1738266875986,0.61775939,105670.0,105660.0,0.00114258]
[1738266876195,0.68746078,105670.0,105660.0,0.00114258]
[1738266876691,0.6552881,105670.0,105660.0,0.00114258]
[1738266877101,0.7585182,105670.0,105660.0,0.00114258]
[1738266877294,0.6552881,105670.0,105660.0,0.00114258]
[1738266877691,0.8945802,105670.0,105640.0,0.34009268]
[1738266877887,0.6533241,105650.0,105640.0,0.68471468]
[1738266878092,0.6533241,105650.0,105640.0,0.65939468]
[1738266878287,0.6533241,105650.0,105640.0,0.68471468]
[1738266879300,0.6553241,105650.0,105640.0,0.68471468]
[1738266880687,0.6553241,105650.0,105640.0,0.69607554]
[1738266880888,0.6553241,105650.0,105640.0,0.47009268]
[1738266881095,1.0161241,105650.0,105640.0,0.47009268]
[1738266881300,1.0161241,105650.0,105640.0,0.34009268]
[1738266881503,1.0161241,105650.0,105630.0,0.21479258]
[1738266881504,0.189312,105640.0,105630.0,0.21479258]
[1738266881703,0.8154421,105640.0,105630.0,0.21479258]
[1738266881902,0.8154421,105640.0,105630.0,0.18947258]
[1738266882595,0.8154421,105640.0,105630.0,0.19047258]
[1738266883790,0.8154421,105640.0,105630.0,0.00114258]
[1738266883995,0.9186722,105640.0,105630.0,0.00114258]
[1738266884200,0.8154421,105640.0,105630.0,0.00114258]
[1738266885210,0.8174421,105640.0,105630.0,0.00114258]
[1738266885796,0.8174421,105640.0,105630.0,0.00014258]
[1738266885997,0.82884636,105640.0,105630.0,0.00014258]
[1738266886797,0.82884636,105640.0,105630.0,0.18947258]
[1738266887202,0.7646421,105640.0,105630.0,0.18947258]
[1738266887394,0.4182,105640.0,105630.0,0.18947258]
[1738266887598,0.4182,105640.0,105630.0,0.24657258]
[1738266887798,0.1606301,105640.0,105630.0,0.24657258]
[1738266888006,0.1052301,105640.0,105630.0,0.24657258]
[1738266888208,0.1052301,105640.0,105630.0,0.29997258]
[1738266888608,0.3628,105640.0,105630.0,0.47852268]
[1738266889796,0.3628,105640.0,105630.0,0.37529258]
[1738266891006,0.002,105640.0,105630.0,0.37529258]
[1738266896511,0.4660301,105640.0,105630.0,0.37529258]
[1738266896807,0.4660301,105640.0,105630.0,0.32529258]
[1738266897009,0.3628,105640.0,105630.0,0.32529258]
[1738266897815,0.3628,105640.0,105630.0,0.36529258]
[1738266900613,0.3628,105640.0,105630.0,0.33997258]
[1738266900814,0.4660301,105640.0,105630.0,0.36529258]
[1738266901315,0.4660301,105640.0,105630.0,0.32529258]
[1738266901517,0.3628,105640.0,105630.0,0.32529258]
[1738266901919,0.3628,105640.0,105630.0,0.36529258]
[1738266905424,0.002,105640.0,105630.0,0.82932268]
[1738266905623,0.002,105640.0,105630.0,0.93255278]
[1738266905821,0.002,105640.0,105630.0,0.82932268]
[1738266911227,0.11346097,105660.0,105650.0,0.189294]
[1738266911430,0.11346097,105660.0,105650.0,0.8686441]
[1738266911630,0.11346097,105660.0,105650.0,0.9787441]
[1738266911933,0.00014258,105660.0,105650.0,1.3395441]
[1738266912330,0.00214258,105660.0,105650.0,1.3395441]
[1738266913030,0.00614258,105660.0,105650.0,1.3395441]
[1738266913235,0.00514258,105660.0,105650.0,1.3395441]
[1738266914936,0.00514258,105660.0,105650.0,1.32500121]
[1738266915240,0.00514258,105660.0,105650.0,1.35032121]
[1738266916534,0.00514258,105660.0,105650.0,1.63293328]
[1738266920729,0.00514258,105660.0,105650.0,1.9656812]
[1738266922438,0.00514258,105660.0,105650.0,1.9403612]
[1738266922643,0.00514258,105660.0,105650.0,1.9656812]
[1738266924241,0.00514258,105660.0,105650.0,1.9403612]
[1738266924441,0.00514258,105660.0,105650.0,1.9656812]
[1738266927643,0.0544,105690.0,105680.0,0.18924]
[1738266927837,0.0544,105690.0,105680.0,0.4277901]
[1738266928035,0.0544,105690.0,105680.0,0.32456]
[1738266928639,0.12208793,105690.0,105680.0,0.39224793]
[1738266928844,0.12508793,105690.0,105680.0,0.39224793]
[1738266929231,0.0574,105690.0,105680.0,0.39224793]
[1738266929436,0.0594,105690.0,105680.0,0.39324793]
[1738266930737,0.0594,105690.0,105680.0,0.42869711]
[1738266931033,0.0594,105690.0,105680.0,0.43941292]
[1738266931752,0.0594,105690.0,105680.0,1.05440706]
[1738266933445,0.0594,105690.0,105680.0,0.95126995]
[1738266935140,0.0594,105690.0,105680.0,1.05440706]
[1738266936651,0.0594,105690.0,105680.0,1.48624807]
[1738266937040,0.005,105690.0,105680.0,1.84704807]
[1738266937250,0.005,105690.0,105680.0,1.90434807]
[1738266938147,0.06916981,105700.0,105680.0,1.71510807]
[1738266938346,0.06916981,105700.0,105690.0,0.29236011]
[1738266938541,0.06916981,105700.0,105690.0,0.41236011]
[1738266939152,0.0539,105700.0,105690.0,0.41236011]
[1738266940053,0.0549,105700.0,105690.0,0.41236011]
[1738266940456,0.0549,105700.0,105690.0,0.309223]
[1738266940853,0.4167,105700.0,105690.0,0.309223]
[1738266941155,0.0559,105700.0,105690.0,0.309223]
[1738266941654,0.4167,105700.0,105690.0,0.309223]
[1738266942260,0.0559,105700.0,105690.0,1.01728951]
[1738266942958,0.4167,105700.0,105690.0,1.01728951]
[1738266943958,0.0559,105700.0,105690.0,1.01728951]
[1738266944650,0.4167,105700.0,105690.0,1.01728951]
[1738266944856,0.4167,105700.0,105690.0,1.04260951]
[1738266945356,0.4167,105700.0,105690.0,0.94999853]
[1738266948261,0.0559,105700.0,105690.0,0.82999853]
[1738266949255,0.0559,105700.0,105690.0,0.93999853]
[1738266950961,0.51983711,105700.0,105690.0,0.93999853]
[1738266951451,0.15903711,105700.0,105690.0,0.93999853]
[1738266951655,0.51983711,105700.0,105690.0,0.93999853]
[1738266952659,0.48438283,105700.0,105690.0,0.93999853]
[1738266954160,0.48438283,105700.0,105690.0,0.91467853]
[1738266954355,0.48438283,105700.0,105690.0,0.93999853]
[1738266954558,0.43048283,105700.0,105690.0,0.93999853]
[1738266954758,0.002,105700.0,105690.0,1.05489853]
[1738266955159,0.06968283,105700.0,105690.0,1.05489853]
[1738266955659,0.002,105700.0,105690.0,1.05489853]
[1738266956062,0.002,105700.0,105690.0,1.02957853]
[1738266956263,0.3628,105700.0,105690.0,1.05489853]
[1738266956462,0.3628,105700.0,105690.0,1.15192654]
[1738266957262,0.552005,105700.0,105690.0,1.15192654]
[1738266957565,0.3628,105700.0,105690.0,1.15192654]
[1738266958154,0.43048283,105700.0,105690.0,1.04192654]
[1738266958465,0.06968283,105700.0,105690.0,1.08192654]
[1738266958661,0.002,105700.0,105690.0,1.08192654]
[1738266959167,0.3628,105700.0,105690.0,1.10960937]
[1738266959561,0.3628,105700.0,105690.0,1.04192654]
[1738266959762,0.3628,105700.0,105690.0,1.15960937]
[1738266960959,0.3628,105700.0,105690.0,1.66947143]
[1738266962273,0.67217983,105710.0,105690.0,1.66947143]
[1738266962472,0.06768283,105700.0,105690.0,1.66947143]
[1738266962672,0.67217983,105710.0,105690.0,1.48024843]
[1738266962874,0.67217983,105710.0,105700.0,0.189205]
[1738266964064,0.67217983,105710.0,105700.0,0.190205]
[1738266964372,0.67317983,105710.0,105700.0,0.190205]
[1738266965168,0.67517983,105710.0,105700.0,0.190205]
[1738266965369,0.31437983,105710.0,105700.0,0.246805]
[1738266965771,0.67517983,105710.0,105700.0,0.246805]
[1738266966070,0.08509808,105730.0,105720.0,0.189169]
[1738266966272,0.02352969,105740.0,105730.0,0.189151]
[1738266966469,0.02352969,105740.0,105730.0,0.74221666]
[1738266966769,0.16967431,105750.0,105740.0,0.32449866]
[1738266966966,0.42567588,105770.0,105760.0,0.189097]
[1738266967171,0.42567588,105770.0,105760.0,0.64289983]
[1738266967373,0.42567588,105770.0,105760.0,0.45380283]
[1738266967877,0.42567588,105770.0,105760.0,0.42848283]
[1738266968064,0.85415871,105770.0,105760.0,0.02532]
[1738266968378,0.189097,105760.0,105750.0,0.0001419]
[1738266968571,0.189097,105760.0,105730.0,0.48538283]
[1738266968572,0.63274712,105760.0,105730.0,0.4177]
[1738266968773,0.65296812,105750.0,105730.0,0.4177]
[1738266969079,0.189133,105740.0,105730.0,0.0569]
[1738266969269,0.189133,105740.0,105730.0,0.08222]
[1738266969772,0.00013963,105750.0,105740.0,0.189121]
[1738266969978,0.00013963,105750.0,105740.0,0.75806812]
[1738266970875,0.42567588,105770.0,105750.0,0.189106]
[1738266971072,0.42567588,105770.0,105760.0,0.24256712]
[1738266971271,0.42567588,105770.0,105760.0,0.79246412]
[1738266972077,0.42567588,105770.0,105760.0,0.60336712]
[1738266972374,0.298969,105780.0,105760.0,1.35015417]
[1738266972777,0.4152,105790.0,105770.0,0.10304712]
[1738266973081,0.70729112,105790.0,105780.0,0.02532]
[1738266975176,0.70729112,105790.0,105780.0,0.02632]
[1738266975385,0.549844,105790.0,105780.0,0.215382]
[1738266975575,0.65289112,105790.0,105780.0,0.02632]
[1738266976588,0.65289112,105790.0,105780.0,0.02611386]
[1738266977978,0.65289112,105790.0,105780.0,0.001]
[1738266980487,0.549844,105790.0,105780.0,0.001]
[1738266980677,0.65289112,105790.0,105780.0,0.001]
[1738266980879,0.65289112,105790.0,105780.0,0.190062]
[1738266982487,0.65289112,105790.0,105780.0,0.215382]
[1738266983082,0.65289112,105790.0,105780.0,0.38364462]
[1738266983982,0.51107616,105790.0,105780.0,0.38364462]
[1738266984186,0.29209112,105790.0,105780.0,0.38364462]
[1738266984487,0.65289112,105790.0,105780.0,0.16926262]
[1738266985088,0.29209112,105790.0,105780.0,0.35832462]
[1738266985590,0.65289112,105790.0,105780.0,0.35832462]
[1738266988885,0.70909112,105790.0,105780.0,0.16926262]
[1738266992089,1.03437112,105790.0,105780.0,0.16826262]
[1738266992289,0.189062,105780.0,105770.0,0.22449206]
[1738266992484,0.70960912,105780.0,105770.0,0.22449206]
[1738266994386,0.70960912,105780.0,105770.0,0.22549206]
[1738266994588,0.81265624,105780.0,105770.0,0.22549206]
[1738266995095,0.70960912,105780.0,105770.0,0.22549206]
[1738266995595,0.76210912,105780.0,105770.0,0.22549206]
[1738266996790,0.76210912,105780.0,105770.0,0.50695661]
[1738266997191,0.77232038,105780.0,105770.0,0.50695661]
[1738266997591,0.66312038,105780.0,105770.0,0.50695661]
[1738266997798,0.19927326,105780.0,105770.0,0.69603561]
[1738266998996,0.189062,105780.0,105770.0,0.69603561]
[1738267000398,0.189062,105780.0,105770.0,1.05683561]
[1738267001303,0.189062,105780.0,105770.0,1.08211561]
[1738267002002,0.189062,105780.0,105770.0,2.74235482]
[1738267002201,0.52004712,105790.0,105770.0,2.74235482]
[1738267002402,0.189062,105780.0,105770.0,2.74235482]
[1738267003601,0.10304712,105790.0,105770.0,2.55227582]
[1738267003807,0.189058,105790.0,105780.0,0.189062]
[1738267004204,0.549858,105790.0,105780.0,0.189062]
[1738267006299,0.189062,105780.0,105770.0,2.16619582]
[1738267006498,0.189095,105770.0,105760.0,0.189093]
[1738267006701,0.65294212,105770.0,105760.0,0.189093]
[1738267008808,0.46384712,105770.0,105750.0,0.0254219]
[1738267009108,0.46384712,105770.0,105750.0,0.1892489]
[1738267009109,0.29214412,105760.0,105750.0,0.1892489]
[1738267010008,0.65294412,105760.0,105750.0,0.1892489]
[1738267010599,0.65294412,105760.0,105750.0,0.52818379]
[1738267012509,0.29214412,105760.0,105750.0,0.52818379]
[1738267014609,0.29214412,105760.0,105750.0,1.1367005]
[1738267015111,0.189097,105760.0,105750.0,1.4975005]
[1738267015810,0.1892289,105770.0,105760.0,0.189097]
[1738267016011,0.29227602,105770.0,105760.0,0.401577]
[1738267016913,0.29227602,105770.0,105760.0,0.381577]
[1738267018409,0.29227602,105770.0,105760.0,0.99009371]
[1738267018610,0.1892289,105770.0,105760.0,1.35089371]
[1738267019115,0.0001419,105770.0,105760.0,1.65394083]
[1738267019509,0.0001419,105770.0,105760.0,1.55089371]
[1738267021119,0.0001419,105770.0,105760.0,2.09397203]
[1738267021509,0.0001419,105770.0,105760.0,1.99092491]
[1738267024424,0.10318902,105770.0,105760.0,1.96564491]
[1738267024622,0.10318902,105770.0,105760.0,1.99092491]
[1738267024822,0.0001419,105770.0,105760.0,2.00128077]
[1738267025329,0.0001419,105770.0,105760.0,1.66234588]
[1738267026322,0.25455802,105780.0,105760.0,1.66234588]
[1738267027324,0.25455802,105780.0,105760.0,1.46234588]
[1738267027714,0.1515109,105780.0,105770.0,0.189079]
[1738267027922,0.47410366,105790.0,105780.0,0.189062]
[1738267027923,0.189047,105790.0,105780.0,0.189062]
[1738267028129,0.189047,105790.0,105780.0,0.633142]
[1738267028520,0.29209412,105790.0,105780.0,0.633142]
[1738267028728,0.10304712,105790.0,105780.0,0.633142]
[1738267031022,0.10304712,105790.0,105780.0,0.634142]
[1738267032637,0.87471831,105800.0,105780.0,0.634142]
[1738267032828,0.87471831,105800.0,105780.0,0.44508]
[1738267033029,0.51391831,105800.0,105790.0,0.189044]
[1738267034323,0.29917119,105800.0,105790.0,0.189044]
[1738267034835,0.40221831,105800.0,105790.0,0.189044]
[1738267035030,0.39208312,105800.0,105790.0,0.189044]
[1738267035234,0.39208312,105800.0,105790.0,0.190044]
[1738267036032,0.289036,105800.0,105790.0,0.190044]
[1738267037534,0.289036,105800.0,105790.0,0.41530481]
[1738267038548,0.75288312,105800.0,105790.0,0.44058481]
[1738267038838,0.56148312,105800.0,105790.0,0.41530481]
[1738267039436,0.92228312,105800.0,105790.0,0.41530481]
[1738267041243,0.56148312,105800.0,105790.0,0.41530481]
[1738267041444,0.92228312,105800.0,105790.0,0.41530481]
[1738267042746,0.92228312,105800.0,105790.0,0.22626081]
[1738267046637,0.92228312,105800.0,105790.0,0.001]
[1738267050846,0.86698312,105800.0,105790.0,0.001]
[1738267051247,0.86698312,105800.0,105790.0,0.190044]
[1738267051447,0.86698312,105800.0,105790.0,0.41530481]
[1738267054354,0.50618312,105800.0,105790.0,0.41530481]
[1738267054753,0.86698312,105800.0,105790.0,0.41530481]
[1738267066760,0.86698312,105800.0,105790.0,0.22626081]
[1738267066954,0.189044,105790.0,105780.0,0.52519427]
[1738267067168,0.65289112,105790.0,105780.0,0.52519427]
[1738267068262,0.65289112,105790.0,105780.0,0.52619427]
[1738267069963,0.29209112,105790.0,105780.0,0.52619427]
[1738267072466,0.40524218,105790.0,105780.0,0.244059]
[1738267074471,0.41539737,105790.0,105780.0,0.244059]
[1738267075669,0.40524218,105790.0,105780.0,0.244059]
[1738267076878,0.29209112,105790.0,105780.0,0.83418278]
[1738267080673,0.25662459,105790.0,105780.0,0.83418278]
[1738267080880,0.25662459,105790.0,105780.0,1.19498278]
[1738267087783,0.25662459,105790.0,105780.0,1.25140984]
[1738267091491,0.25662459,105790.0,105780.0,1.61489148]
[1738267095888,0.25662459,105790.0,105780.0,1.25409148]
[1738267096096,0.25662459,105790.0,105780.0,0.91588984]
[1738267096284,0.25662459,105790.0,105780.0,0.89060984]
[1738267096492,0.25662459,105790.0,105780.0,0.64755084]
[1738267096687,0.32420518,105790.0,105780.0,0.64755084]
[1738267096891,0.25662459,105790.0,105780.0,0.64755084]
[1738267097185,0.32420518,105790.0,105780.0,0.64755084]
[1738267100601,0.34164444,105790.0,105780.0,0.59127272]
[1738267100794,0.34164444,105790.0,105780.0,0.78033472]
[1738267101195,0.34164444,105790.0,105780.0,0.83243472]
[1738267104300,0.25662459,105790.0,105780.0,1.17099705]
[1738267108407,0.25662459,105790.0,105780.0,0.83243472]
[1738267112005,0.06758059,105790.0,105780.0,1.24323472]
[1738267112301,0.29817091,105800.0,105790.0,0.189044]
[1738267112490,0.29817091,105800.0,105790.0,0.83082459]
[1738267112892,0.19817091,105800.0,105790.0,2.39840518]
[1738267113096,0.20911597,105820.0,105810.0,0.189008]
[1738267113297,0.20911597,105820.0,105810.0,0.575088]
[1738267113504,0.39810597,105820.0,105810.0,0.678488]
[1738267113705,0.46568656,105820.0,105810.0,0.678488]
[1738267114699,0.39810597,105820.0,105810.0,0.678488]
[1738267115403,0.46568656,105820.0,105810.0,0.678488]
[1738267115808,0.39810597,105820.0,105810.0,0.678488]
[1738267116299,0.39810597,105820.0,105810.0,0.679488]
[1738267116900,0.39810597,105820.0,105810.0,1.26976072]
[1738267117100,0.25657059,105820.0,105810.0,1.2795559]
[1738267118397,0.32415118,105820.0,105810.0,1.2795559]
[1738267118805,0.25657059,105820.0,105810.0,1.2795559]
[1738267120613,0.25657059,105820.0,105810.0,0.68928318]
[1738267122608,0.32415118,105820.0,105810.0,0.550808]
[1738267122909,0.32415118,105820.0,105810.0,0.190008]
[1738267123110,0.32415118,105820.0,105810.0,0.215288]
[1738267123308,0.32415118,105820.0,105810.0,0.02628]
[1738267123699,0.68495118,105820.0,105810.0,0.02628]
[1738267123895,0.75253177,105820.0,105810.0,0.16955686]
[1738267124105,0.189008,105810.0,105800.0,0.28242611]
[1738267124310,0.76434918,105810.0,105800.0,0.28242611]
[1738267124502,0.84596918,105810.0,105800.0,0.28242611]
[1738267124703,0.87124918,105810.0,105800.0,0.28242611]
[1738267124905,0.72428859,105810.0,105800.0,0.28242611]
[1738267125210,0.72428859,105810.0,105800.0,0.47145211]
[1738267126812,0.73416533,105810.0,105800.0,0.47145211]
[1738267127814,0.80174592,105810.0,105800.0,0.28242611]
[1738267128016,0.73416533,105810.0,105800.0,0.28242611]
[1738267128212,0.80174592,105810.0,105800.0,0.28242611]
[1738267128714,0.73416533,105810.0,105800.0,0.28242611]
[1738267129216,0.80174592,105810.0,105800.0,0.28242611]
[1738267129515,0.80174592,105810.0,105800.0,0.0001419]
[1738267132115,0.44094592,105810.0,105800.0,0.0001419]
[1738267132316,0.37336533,105810.0,105800.0,0.1891679]
[1738267133414,0.73416533,105810.0,105800.0,0.1891679]
[1738267134117,0.73416533,105810.0,105800.0,0.0001419]
[1738267134317,0.73416533,105810.0,105800.0,0.1891679]
[1738267136121,0.80174592,105810.0,105800.0,0.1891679]
[1738267137609,0.44094592,105810.0,105800.0,0.1891679]
[1738267138014,0.73416533,105810.0,105800.0,0.1891679]
[1738267139315,0.80174592,105810.0,105800.0,0.1891679]
[1738267139515,0.80174592,105810.0,105800.0,0.0001419]
[1738267141724,0.82702592,105810.0,105800.0,0.0001419]
[1738267141925,0.80174592,105810.0,105800.0,0.0001419]
[1738267142124,0.82702592,105810.0,105800.0,0.0001419]
[1738267143224,0.89460651,105810.0,105800.0,0.0001419]
[1738267143520,1.18782592,105810.0,105800.0,0.0001419]
[1738267145713,1.18782592,105810.0,105800.0,0.0011419]
[1738267145913,1.06639851,105810.0,105790.0,0.22483682]
[1738267146118,0.80936777,105800.0,105790.0,0.22483682]
[1738267147323,0.189044,105790.0,105780.0,0.28242611]
[1738267147534,0.86138577,105790.0,105780.0,0.28242611]
[1738267147724,0.86138577,105790.0,105780.0,0.22547148]
[1738267147934,0.79380518,105790.0,105780.0,0.22547148]
[1738267149232,0.79780518,105790.0,105780.0,0.22547148]
[1738267150019,0.79480518,105790.0,105780.0,0.22547148]
[1738267150224,0.80180518,105790.0,105780.0,0.22647148]
[1738267150623,0.79480518,105790.0,105780.0,0.22547148]